fUSD/lending_fUSD_20250112
["ID","MTS","AMOUNT","RATE_DAILY","PERIOD"]
[348671072,1736705455156,-500.0,0.00010638,2]
[348671073,1736705455165,-500.0,0.00010638,2]
[348671074,1736705455174,-500.0,0.00010638,2]
[348671075,1736705455183,-500.0,0.00010638,2]
[348671076,1736705455192,-500.0,0.00010638,2]
[348671077,1736705455201,-500.0,0.00010638,2]
[348671078,1736705455210,-514.16,0.00010638,2]
[348671079,1736705455220,-500.0,0.00010638,2]
[348671080,1736705455229,-500.0,0.00010638,2]
[348671081,1736705455238,-500.0,0.00010638,2]
[348671082,1736705455247,-604.96,0.00010638,2]
[348671083,1736705455257,-500.0,0.00010638,2]
[348671084,1736705455266,-767.24,0.00010638,2]
[348671085,1736705455276,-818.49,0.00010638,2]
[348671086,1736705455285,-500.0,0.00010638,2]
[348671087,1736705455295,-500.0,0.00010638,2]
[348671088,1736705455305,-500.0,0.00010638,2]
[348671089,1736705455315,-500.0,0.00010638,2]
[348671090,1736705455324,-500.0,0.00010638,2]
[348671091,1736705455334,-500.0,0.00010638,2]
[348671092,1736705455343,-500.0,0.00010638,2]
[348671093,1736705455352,-500.0,0.00010638,2]
[348671094,1736705455362,-557.79,0.00010638,2]
[348671095,1736705455371,-543.11,0.00010638,2]
[348671096,1736705455380,-500.0,0.00010638,2]
[348671097,1736705455390,-520.62,0.00010638,2]
[348671098,1736705455399,-500.0,0.00010638,2]
[348671099,1736705455409,-570.08,0.00010638,2]
[348671100,1736705455418,-500.0,0.00010638,2]
[348671101,1736705455428,-500.0,0.00010638,2]
[348671102,1736705455438,-500.0,0.00010638,2]
[348671103,1736705455447,-500.0,0.00010638,2]
[348671104,1736705455457,-708.58,0.00010638,2]
[348671105,1736705455466,-500.0,0.00010638,2]
[348671106,1736705455476,-635.84,0.00010638,2]
[348671107,1736705455486,-733.05,0.00010638,2]
[348671108,1736705455495,-1820.08,0.00010638,2]
[348671109,1736705455505,-500.0,0.00010638,2]
[348671110,1736705455514,-582.33,0.00010638,2]
[348671111,1736705455524,-608.14,0.00010638,2]
[348671112,1736705455533,-500.0,0.00010638,2]
[348671113,1736705455543,-2398.15,0.00010638,2]
[348671114,1736705455552,-500.0,0.00010638,2]
[348671115,1736705455562,-500.0,0.00010639,2]
[348671116,1736705455571,-500.0,0.00010639,2]
[348671117,1736705455581,-500.0,0.00010639,2]
[348671118,1736705455592,-500.0,0.00010639,2]
[348671119,1736705455602,-1619.38,0.00010639,2]
[348671120,1736705455611,-4246.08,0.00010639,2]
[348671121,1736705455625,-500.0,0.00010639,2]
[348671122,1736705455635,-739.94,0.00010639,2]
[348671123,1736705455645,-1497.1,0.00010639,2]
[348671124,1736705455656,-817.76,0.00010639,2]
[348671125,1736705455667,-1016.01,0.00010639,2]
[348671126,1736705455676,-1057.72,0.00010639,2]
[348671127,1736705455686,-3602.91,0.00010639,2]
[348671128,1736705455698,-767.29,0.00010639,2]
[348671129,1736705455707,-650.47,0.00010639,2]
[348671130,1736705455718,-838.01,0.00010639,2]
[348671131,1736705455727,-581.96,0.00010639,2]
[348671132,1736705455737,-1766.7,0.00010639,2]
[348671133,1736705455747,-1089.95,0.00010639,2]
[348671134,1736705455756,-1296.0,0.00010639,2]
[348671135,1736705455766,-1223.38,0.00010639,2]
[348671136,1736705455776,-1371.37,0.00010639,2]
[348671137,1736705455786,-743.13,0.00010639,2]
[348671138,1736705455795,-799.08,0.00010639,2]
[348671139,1736705455804,-1817.43,0.00010639,2]
[348671140,1736705455815,-500.0,0.00010639,2]
[348671141,1736705455827,-1011.0,0.00010639,2]
[348671142,1736705455838,-1045.35,0.00010639,2]
[348671143,1736705455847,-1035.38,0.00010639,2]
[348671144,1736705455858,-791.88,0.00010639,2]
[348671145,1736705455868,-500.0,0.00010639,2]
[348671146,1736705455878,-1093.07,0.00010639,2]
[348671147,1736705455889,-2071.18,0.00010639,2]
[348671148,1736705455899,-611.6,0.00010639,2]
[348671149,1736705455909,-642.93,0.00010639,2]
[348671150,1736705455920,-886.63,0.00010639,2]
[348671151,1736705455929,-236.55597594,0.00010639,2]
[348671152,1736705455939,-4387.78,0.00010639,2]
[348671153,1736705455950,-1765.1,0.00010639,2]
[348671154,1736705455960,-831.0,0.0001064,2]
[348671155,1736705455971,-507.693014,0.0001064,2]
[348671156,1736705455980,-559.550235,0.0001064,2]
[348671157,1736705455990,-158.98037,0.0001064,2]
[348671158,1736705456001,-156.894466,0.0001064,2]
[348671159,1736705456011,-154.957014,0.0001064,2]
[348671160,1736705456021,-157.692616,0.0001064,2]
[348671161,1736705456030,-500.0,0.0001064,2]
[348671162,1736705456041,-541.4,0.0001064,2]
[348671163,1736705456051,-183.596684,0.0001064,2]
[348671164,1736705456061,-154.95701,0.0001064,2]
[348671165,1736705456072,-2178.02,0.0001064,2]
[348671166,1736705456083,-157.352655,0.0001064,2]
[348671167,1736705456095,-183.596685,0.0001064,2]
[348671168,1736705456105,-638.98,0.0001064,2]
[348671169,1736705456116,-1344.45,0.0001064,2]
[348671170,1736705456126,-500.0,0.0001064,2]
[348671171,1736705456136,-1188.94,0.0001064,2]
[348671172,1736705456146,-183.596684,0.0001064,2]
[348671173,1736705456156,-554.52,0.0001064,2]
[348671174,1736705456166,-3156.06,0.0001064,2]
[348671175,1736705456175,-774.33,0.0001064,2]
[348671176,1736705456184,-1312.33,0.0001064,2]
[348671177,1736705456194,-500.0,0.0001064,2]
[348671178,1736705456204,-1573.37,0.0001064,2]
[348671179,1736705456214,-177.768165,0.0001064,2]
[348671180,1736705456223,-196.598156,0.0001064,2]
[348671181,1736705456232,-817.63,0.0001064,2]
[348671182,1736705456242,-500.0,0.0001064,2]
[348671183,1736705456251,-2050.56,0.0001064,2]
[348671184,1736705456260,-845.42,0.0001064,2]
[348671185,1736705456270,-1947.54,0.0001064,2]
[348671186,1736705456280,-196.598156,0.0001064,2]
[348671187,1736705456289,-541.4,0.0001064,2]
[348671188,1736705456299,-518.84,0.0001064,2]
[348671189,1736705456309,-1280.42,0.0001064,2]
[348671190,1736705456319,-636.74,0.0001064,2]
[348671191,1736705456328,-636.74,0.0001064,2]
[348671192,1736705456338,-1135.46,0.0001064,2]
[348671193,1736705456347,-2769.36,0.0001064,2]
[348671194,1736705456358,-839.87,0.0001064,2]
[348671195,1736705456367,-789.81,0.0001064,2]
[348671196,1736705456377,-3245.49,0.0001064,2]
[348671197,1736705456387,-177.768165,0.0001064,2]
[348671198,1736705456398,-1642.63,0.0001064,2]
[348671199,1736705456408,-1870.95,0.0001064,2]
[348671200,1736705456417,-500.0,0.0001064,2]
[348671201,1736705456427,-500.0,0.0001064,2]
[348671202,1736705456437,-647.1,0.0001064,2]
[348671203,1736705456446,-998.45,0.0001064,2]
[348671204,1736705456455,-517.08,0.0001064,2]
[348671205,1736705456465,-697.94,0.00010641,2]
[348671206,1736705456474,-501.51,0.00010641,2]
[348671207,1736705456483,-581.96,0.00010641,2]
[348671208,1736705456493,-1443.74,0.00010641,2]
[348671209,1736705456502,-500.0,0.00010641,2]
[348671210,1736705456512,-671.0,0.00010641,2]
[348671211,1736705456522,-1020.13,0.00010641,2]
[348671212,1736705456532,-1328.01,0.00010641,2]
[348671213,1736705456541,-677.36,0.00010641,2]
[348671214,1736705456550,-1000.0,0.00010641,2]
[348671215,1736705456560,-500.0,0.00010641,2]
[348671216,1736705456569,-2116.14,0.00010641,2]
[348671217,1736705456578,-2362.96,0.00010641,2]
[348671218,1736705456588,-199.41435061,0.00010694,2]
[348671219,1736705456597,-510.23,0.00010702,2]
[348671220,1736705456607,-553.29894453,0.00010731,2]
[348671221,1736705456620,-199.41435061,0.00010789,2]
[348671222,1736705456629,-170.5870911,0.00010814,2]
[348671223,1736705456639,-3896.745,0.00010834,2]
[348671224,1736705456649,-1174.0,0.00010834,2]
[348671225,1736705456659,-150.0,0.00010834,2]
[348671226,1736705456668,-1104.0,0.00010834,2]
[348671227,1736705456677,-1000.0,0.00010853,2]
[348671228,1736705456687,-553.29894453,0.00010859,2]
[348671229,1736705456699,-150.0,0.00010871,2]
[348671230,1736705456709,-150.0,0.0001088,2]
[348671231,1736705456718,-199.41435061,0.00010885,2]
[348671232,1736705456728,-4458.599,0.00010892,2]
[348671233,1736705456738,-169.249,0.00010892,2]
[348671234,1736705456747,-150.0,0.00010893,2]
[348671235,1736705456756,-150.0,0.00010899,2]
[348671236,1736705456767,-182.65106812,0.000109,2]
[348671237,1736705456776,-182.65106808,0.000109,2]
[348671238,1736705456785,-182.65106808,0.000109,2]
[348671239,1736705456795,-182.65106808,0.000109,2]
[348671240,1736705456804,-182.65106808,0.000109,2]
[348671241,1736705456813,-500.0,0.00010911,2]
[348671242,1736705456823,-500.0,0.00010911,2]
[348671243,1736705456832,-500.0,0.00010911,2]
[348671244,1736705456842,-500.0,0.00010911,2]
[348671245,1736705456852,-500.0,0.00010911,2]
[348671246,1736705456864,-500.0,0.00010911,2]
[348671247,1736705456874,-500.0,0.00010911,2]
[348671248,1736705456884,-500.0,0.00010911,2]
[348671249,1736705456895,-500.0,0.00010911,2]
[348671250,1736705456905,-500.0,0.00010911,2]
[348671251,1736705456915,-500.0,0.00010911,2]
[348671252,1736705456924,-500.0,0.00010911,2]
[348671253,1736705456934,-500.0,0.00010911,2]
[348671254,1736705456944,-389.99430616,0.00010911,2]
[348671255,1736705456953,-500.0,0.00010911,2]
[348671256,1736705456963,-500.0,0.00010911,2]
[348671257,1736705456972,-527.2,0.00010911,2]
[348671258,1736705456982,-500.0,0.00010911,2]
[348671259,1736705456991,-500.0,0.00010911,2]
[348671260,1736705457001,-530.87,0.00010911,2]
[348671261,1736705457010,-500.0,0.00010911,2]
[348671262,1736705457020,-728.72,0.00010911,2]
[348671263,1736705457030,-500.0,0.00010911,2]
[348671264,1736705457040,-547.9,0.00010911,2]
[348671265,1736705457049,-500.0,0.00010911,2]
[348671266,1736705457060,-500.0,0.00010911,2]
[348671267,1736705457070,-624.32172488,0.00010911,2]
[348671268,1736705457079,-211.54667913,0.00010911,2]
[348671269,1736705457088,-500.0,0.00010911,2]
[348671270,1736705457098,-586.59,0.00010911,2]
[348671271,1736705457107,-500.0,0.00010911,2]
[348671272,1736705457116,-500.0,0.00010911,2]
[348671273,1736705457125,-500.0,0.00010911,2]
[348671274,1736705457135,-500.0,0.00010911,2]
[348671275,1736705457144,-524.44,0.00010911,2]
[348671276,1736705457153,-561.88,0.00010911,2]
[348671277,1736705457219,-500.0,0.00010911,2]
[348671278,1736705457229,-623.2,0.00010911,2]
[348671279,1736705457238,-500.0,0.00010911,2]
[348671280,1736705457247,-507.71,0.00010911,2]
[348671281,1736705457257,-500.0,0.00010911,2]
[348671282,1736705457269,-500.0,0.00010911,2]
[348671283,1736705457282,-686.39,0.00010911,2]
[348671284,1736705457291,-500.0,0.00010911,2]
[348671285,1736705457300,-500.0,0.00010911,2]
[348671286,1736705457310,-500.0,0.00010911,2]
[348671287,1736705457319,-500.0,0.00010911,2]
[348671288,1736705457330,-530.1,0.00010911,2]
[348671289,1736705457339,-500.0,0.00010911,2]
[348671290,1736705457349,-500.0,0.00010911,2]
[348671291,1736705457359,-500.0,0.00010911,2]
[348671292,1736705457368,-622.64,0.00010911,2]
[348671293,1736705457377,-500.0,0.00010911,2]
[348671294,1736705457387,-2933.22,0.00010911,2]
[348671295,1736705457396,-500.0,0.00010911,2]
[348671296,1736705457405,-539.13,0.00010911,2]
[348671297,1736705457414,-500.0,0.00010911,2]
[348671298,1736705457423,-500.0,0.00010911,2]
[348671299,1736705457432,-1602.32,0.00010911,2]
[348671300,1736705457441,-500.0,0.00010911,2]
[348671301,1736705457451,-552.1,0.00010911,2]
[348671302,1736705457461,-745.0,0.00010911,2]
[348671303,1736705457470,-500.0,0.00010911,2]
[348671304,1736705457479,-2249.57,0.00010911,2]
[348671305,1736705457488,-500.0,0.00010911,2]
[348671306,1736705457497,-500.0,0.00010911,2]
[348671307,1736705457506,-500.0,0.00010911,2]
[348671308,1736705457516,-500.0,0.00010911,2]
[348671309,1736705457526,-500.0,0.00010911,2]
[348671310,1736705457536,-546.07,0.00010911,2]
[348671311,1736705457545,-500.0,0.00010911,2]
[348671312,1736705457554,-692.71,0.00010911,2]
[348671313,1736705457564,-500.0,0.00010911,2]
[348671314,1736705457573,-519.35,0.00010911,2]
[348671315,1736705457583,-651.87,0.00010911,2]
[348671316,1736705457592,-610.64,0.00010911,2]
[348671317,1736705457601,-557.89,0.00010911,2]
[348671318,1736705457611,-500.0,0.00010911,2]
[348671319,1736705457624,-771.44,0.00010911,2]
[348671320,1736705457634,-641.28,0.00010911,2]
[348671321,1736705457643,-500.0,0.00010911,2]
[348671322,1736705457653,-505.21,0.00010911,2]
[348671323,1736705457663,-500.0,0.00010911,2]
[348671324,1736705457672,-609.5,0.00010911,2]
[348671325,1736705457681,-500.0,0.00010911,2]
[348671326,1736705457692,-500.0,0.00010912,2]
[348671327,1736705457701,-500.0,0.00010912,2]
[348671328,1736705457710,-500.0,0.00010912,2]
[348671329,1736705457719,-500.0,0.00010912,2]
[348671330,1736705457728,-500.0,0.00010912,2]
[348671331,1736705457737,-500.0,0.00010912,2]
[348671332,1736705457746,-500.0,0.00010912,2]
[348671333,1736705457755,-500.0,0.00010912,2]
[348671334,1736705457763,-500.0,0.00010912,2]
[348671335,1736705457774,-500.0,0.00010912,2]
[348671336,1736705457784,-500.0,0.00010912,2]
[348671337,1736705457793,-500.0,0.00010912,2]
[348671338,1736705457802,-500.0,0.00010912,2]
[348671339,1736705457811,-514.16,0.00010912,2]
[348671340,1736705457820,-500.0,0.00010912,2]
[348671341,1736705457829,-500.0,0.00010912,2]
[348671342,1736705457838,-500.0,0.00010912,2]
[348671343,1736705457847,-604.96,0.00010912,2]
[348671344,1736705457856,-500.0,0.00010912,2]
[348671345,1736705457865,-767.24,0.00010912,2]
[348671346,1736705457874,-818.49,0.00010912,2]
[348671347,1736705457884,-86.83596547,0.00010912,2]
[348671348,1736705458151,-413.16403453,0.00010912,2]
[348671349,1736705458161,-500.0,0.00010912,2]
[348671350,1736705458170,-500.0,0.00010912,2]
[348671351,1736705458179,-500.0,0.00010912,2]
[348671352,1736705458188,-500.0,0.00010912,2]
[348671353,1736705458197,-590.08851442,0.00010912,2]
[348671354,1736705458207,-500.0,0.00010912,2]
[348671355,1736705458216,-500.0,0.00010912,2]
[348671356,1736705458225,-557.79,0.00010912,2]
[348671357,1736705458235,-543.11,0.00010912,2]
[348671358,1736705458244,-500.0,0.00010912,2]
[348671359,1736705458253,-520.62,0.00010912,2]
[348671360,1736705458262,-500.0,0.00010912,2]
[348671361,1736705458271,-570.08,0.00010912,2]
[348671362,1736705458280,-500.0,0.00010912,2]
[348671363,1736705458289,-500.0,0.00010912,2]
[348671364,1736705458298,-500.0,0.00010912,2]
[348671365,1736705458307,-500.0,0.00010912,2]
[348671366,1736705458317,-708.58,0.00010912,2]
[348671367,1736705458326,-194.84144655,0.00010912,2]
[348671368,1736705458604,-500.0,9.269e-05,2]
[348671369,1736705458614,-500.0,9.269e-05,2]
[348671370,1736705458628,-500.0,9.27e-05,2]
[348671371,1736705458638,-500.0,9.27e-05,2]
[348671372,1736705458649,-500.0,9.541e-05,2]
[348671373,1736705458658,-500.0,9.543e-05,2]
[348671374,1736705458671,-305.15855345,0.00010912,2]
[348671375,1736705458681,-635.84,0.00010912,2]
[348671376,1736705458690,-733.05,0.00010912,2]
[348671377,1736705458703,-1820.08,0.00010912,2]
[348671378,1736705458716,-582.33,0.00010912,2]
[348671379,1736705458727,-608.14,0.00010912,2]
[348671380,1736705458737,-500.0,0.00010912,2]
[348671381,1736705458747,-1217.40144654,0.00010912,2]
[348671382,1736705458758,-394.9525597,0.00010912,2]
[348671383,1736705458770,-358.43885018,0.00010912,2]
[348671384,1736705458781,-427.35714358,0.00010912,2]
[348671385,1736705458791,-500.0,0.00010912,2]
[348671386,1736705458800,-14.00181642,0.00010913,2]
[348671387,1736705458811,-485.99818358,0.00010913,2]
[348671388,1736705458819,-500.0,0.00010913,2]
[348671389,1736705458830,-500.0,0.00010913,2]
[348671390,1736705458840,-616.38132078,0.00010913,2]
[348671391,1736705458849,-500.0,0.00010913,2]
[348671392,1736705458859,-503.6770074,0.00010913,2]
[348671393,1736705458867,-4246.08,0.00010913,2]
[348671394,1736705458879,-500.0,0.00010913,2]
[348671395,1736705458888,-739.94,0.00010913,2]
[348671396,1736705458897,-1497.1,0.00010913,2]
[348671397,1736705458908,-817.76,0.00010913,2]
[348671398,1736705458919,-1016.01,0.00010913,2]
[348671399,1736705458929,-1057.72,0.00010913,2]
[348671400,1736705458939,-3602.91,0.00010913,2]
[348671401,1736705458950,-767.29,0.00010913,2]
[348671402,1736705458960,-650.47,0.00010913,2]
[348671403,1736705458971,-838.01,0.00010913,2]
[348671404,1736705458982,-581.96,0.00010913,2]
[348671405,1736705458992,-1766.7,0.00010913,2]
[348671406,1736705459002,-1089.95,0.00010913,2]
[348671407,1736705459012,-1296.0,0.00010913,2]
[348671408,1736705459022,-1223.38,0.00010913,2]
[348671409,1736705459032,-1371.37,0.00010913,2]
[348671410,1736705459042,-743.13,0.00010913,2]
[348671411,1736705459051,-799.08,0.00010913,2]
[348671412,1736705459063,-1817.43,0.00010913,2]
[348671413,1736705459074,-500.0,0.00010913,2]
[348671414,1736705459084,-1011.0,0.00010913,2]
[348671415,1736705459095,-1045.35,0.00010913,2]
[348671416,1736705459105,-1035.38,0.00010913,2]
[348671417,1736705459114,-791.88,0.00010913,2]
[348671418,1736705459123,-500.0,0.00010913,2]
[348671419,1736705459134,-1093.07,0.00010913,2]
[348671420,1736705459145,-500.0,0.00010913,2]
[348671421,1736705459155,-336.87,0.00010913,2]
[348671422,1736705459165,-2071.18,0.00010913,2]
[348671423,1736705459175,-611.6,0.00010913,2]
[348671424,1736705459186,-642.93,0.00010913,2]
[348671425,1736705459196,-886.63,0.00010913,2]
[348671426,1736705459206,-1765.1,0.00010913,2]
[348671427,1736705459217,-507.693014,0.00010914,2]
[348671428,1736705459226,-559.550235,0.00010914,2]
[348671429,1736705459236,-500.0,0.00010914,2]
[348671430,1736705459246,-541.4,0.00010914,2]
[348671431,1736705459255,-2178.02,0.00010914,2]
[348671432,1736705459265,-638.98,0.00010914,2]
[348671433,1736705459274,-1344.45,0.00010914,2]
[348671434,1736705459284,-500.0,0.00010914,2]
[348671435,1736705459293,-1188.94,0.00010914,2]
[348671436,1736705459303,-554.52,0.00010914,2]
[348671437,1736705459312,-551.79489241,0.00010914,2]
[348671438,1736705459382,-2604.26510759,0.00010914,2]
[348671439,1736705459392,-774.33,0.00010914,2]
[348671440,1736705459401,-1312.33,0.00010914,2]
[348671441,1736705459412,-500.0,0.00010914,2]
[348671442,1736705459422,-1573.37,0.00010914,2]
[348671443,1736705459432,-817.63,0.00010914,2]
[348671444,1736705459443,-500.0,0.00010914,2]
[348671445,1736705459453,-2050.56,0.00010914,2]
[348671446,1736705459463,-845.42,0.00010914,2]
[348671447,1736705459473,-1947.54,0.00010914,2]
[348671448,1736705459483,-541.4,0.00010914,2]
[348671449,1736705459493,-1280.42,0.00010914,2]
[348671450,1736705459504,-636.74,0.00010914,2]
[348671451,1736705459515,-636.74,0.00010914,2]
[348671452,1736705459525,-1135.46,0.00010914,2]
[348671453,1736705459536,-2769.36,0.00010914,2]
[348671454,1736705459545,-719.60667501,0.00010914,2]
[348671455,1736705459558,-120.26332499,0.00010914,2]
[348671456,1736705459567,-269.49667501,0.00010914,2]
[348671457,1736705459594,-520.31332499,0.00010914,2]
[348671458,1736705459604,-3245.49,0.00010914,2]
[348671459,1736705459615,-1642.63,0.00010914,2]
[348671460,1736705459627,-960.79609579,0.00010914,2]
[348671461,1736705459639,-910.15390421,0.00010914,2]
[348671462,1736705459648,-500.0,0.00010914,2]
[348671463,1736705459659,-500.0,0.00010914,2]
[348671464,1736705459668,-647.1,0.00010914,2]
[348671465,1736705459678,-998.45,0.00010914,2]
[348671466,1736705459688,-517.08,0.00010914,2]
[348671467,1736705459697,-697.94,0.00010915,2]
[348671468,1736705459707,-501.51,0.00010915,2]
[348671469,1736705459716,-581.96,0.00010915,2]
[348671470,1736705459726,-1443.74,0.00010915,2]
[348671471,1736705459735,-500.0,0.00010915,2]
[348671472,1736705459745,-671.0,0.00010915,2]
[348671473,1736705459754,-1020.13,0.00010915,2]
[348671474,1736705459763,-1328.01,0.00010915,2]
[348671475,1736705459773,-677.36,0.00010915,2]
[348671476,1736705459784,-1000.0,0.00010915,2]
[348671477,1736705459793,-500.0,0.00010915,2]
[348671478,1736705459802,-2116.14,0.00010915,2]
[348671479,1736705459812,-2362.96,0.00010915,2]
[348671480,1736705459822,-150.0,0.00010915,2]
[348671481,1736705459831,-150.0,0.00010923,2]
[348671482,1736705459840,-150.0,0.00010923,2]
[348671483,1736705459849,-150.0,0.00010924,2]
[348671484,1736705459859,-150.0,0.00010928,2]
[348671485,1736705459868,-150.0,0.00010932,2]
[348671486,1736705459877,-150.0,0.0001095,2]
[348671487,1736705459886,-150.0,0.00010954,2]
[348671488,1736705459895,-150.0,0.00010954,2]
[348671489,1736705459904,-150.0,0.00010955,2]
[348671490,1736705459915,-5357.17180436,0.00010958,2]
[348671491,1736705459925,-999.0,0.00010958,2]
[348671492,1736705459934,-3078.18423166,0.00010959,2]
[348671493,1736705459947,-388.89070116,0.00010959,2]
[348671494,1736705459965,-532.92506718,0.00010959,2]
[348671495,1736705459975,-150.0,0.00010962,2]
[348671496,1736705459984,-150.0,0.00010962,2]
[348671497,1736705459994,-485.6844419,0.00010966,2]
[348671498,1736705460004,-182.65106808,0.00010967,2]
[348671499,1736705460014,-199.41435061,0.0001098,2]
[348671500,1736705460025,-974.18742354,0.0001098,2]
[348671501,1736705460034,-150.0,0.00010981,2]
[348671502,1736705460044,-150.0,0.00010983,2]
[348671503,1736705460054,-150.0,0.00010985,2]
[348671504,1736705460064,-553.29894453,0.00010986,2]
[348671505,1736705460073,-150.0,0.00010991,2]
[348671506,1736705460083,-849.43870415,0.00010999,2]
[348671507,1736705460233,-1513.52129585,0.00010999,2]
[348671508,1736705460242,-200.0,0.00011,2]
[348671509,1736705460252,-134.22464015,0.00011,2]
[348671510,1736705460276,-500.0,9.817e-05,2]
[348671511,1736705460286,-415.77535985,0.00011,2]
[348671512,1736705460296,-150.0,0.00011003,2]
[348671513,1736705460306,-150.0,0.00011005,2]
[348671514,1736705460316,-1567.79547049,0.00011012,2]
[348671515,1736705460326,-150.0,0.00011033,2]
[348671516,1736705460336,-150.0,0.00011038,2]
[348671517,1736705460346,-150.0,0.00011039,2]
[348671518,1736705460356,-150.0,0.0001104,2]
[348671519,1736705460366,-3519.0,0.00011041,2]
[348671520,1736705460375,-1500.0,0.00011047,2]
[348671521,1736705460385,-300.0,0.00011047,2]
[348671522,1736705460395,-150.0,0.00011054,2]
[348671523,1736705460405,-150.0,0.00011061,2]
[348671524,1736705460415,-108491.81178119,0.00011064,3]
[348671525,1736705460425,-153.766935,0.0001107,2]
[348671526,1736705460435,-500.0,0.00011072,2]
[348671527,1736705460445,-150.0,0.00011078,2]
[348671528,1736705460455,-500.0,0.00011079,2]
[348671529,1736705460464,-500.0,0.00011079,2]
[348671530,1736705460474,-500.0,0.00011079,2]
[348671531,1736705460484,-500.0,0.00011079,2]
[348671532,1736705460494,-500.0,0.00011079,2]
[348671533,1736705460503,-500.0,0.00011079,2]
[348671534,1736705460513,-500.0,0.00011079,2]
[348671535,1736705460524,-500.0,0.00011079,2]
[348671536,1736705460535,-500.0,0.00011079,2]
[348671537,1736705460545,-500.0,0.00011079,2]
[348671538,1736705460556,-500.0,0.00011079,2]
[348671539,1736705460566,-500.0,0.00011079,2]
[348671540,1736705460576,-500.0,0.00011079,2]
[348671541,1736705460586,-481.08,0.00011079,2]
[348671542,1736705460595,-403071.22971576,0.0001108,4]
[348671543,1736705460949,-500.0,9.269e-05,2]
[348671544,1736705460959,-500.0,9.27e-05,2]
[348671545,1736705460968,-500.0,9.27e-05,2]
[348671546,1736705460978,-500.0,9.541e-05,2]
[348671547,1736705460987,-500.0,9.541e-05,2]
[348671548,1736705460997,-500.0,9.543e-05,2]
[348671549,1736705461006,-500.0,9.544e-05,2]
[348671550,1736705461016,-500.0,9.544e-05,2]
[348671551,1736705461026,-500.0,9.817e-05,2]
[348671552,1736705461035,-500.0,9.818e-05,2]
[348671553,1736705461045,-500.0,0.00010091,2]
[348671554,1736705461054,-500.0,0.00010091,2]
[348671555,1736705461064,-500.0,0.00010365,2]
[348671556,1736705461074,-384.6,0.00010639,2]
[348671557,1736705461083,-11919.4,0.0001108,4]
[348671558,1736705461095,-48996.65794538,0.0001108,4]
[348671559,1736705461107,-9901.3015515,0.0001108,4]
[348671560,1736705461118,-42378.60000169,0.0001108,4]
[348671561,1736705461130,-24369.52228932,0.0001108,4]
[348671562,1736705461142,-4698.376644,0.0001108,4]
[348671563,1736705462273,-67888.17225427,0.0001108,4]
[348671564,1736705462284,-5326.40970015,0.0001108,4]
[348671565,1736705462296,-532.02312548,0.0001108,4]
[348671566,1736705462307,-692.51058147,0.0001108,4]
[348671567,1736705462318,-683.6014778,0.0001108,4]
[348671568,1736705462329,-784.31800732,0.0001108,4]
[348671569,1736705462340,-268.48160786,0.0001108,4]
[348671570,1736705462351,-44763.19488933,0.0001108,4]
[348671571,1736705462373,-500.0,9.269e-05,2]